lending/lending_fUSD_20250621
["ID","MTS","AMOUNT","RATE_DAILY","PERIOD"]
[366855088,1750518639768,-500.0,0.00023232,2]
[366855089,1750518639778,-151.31413614,0.00023232,2]
[366855090,1750518639788,-500.0,0.00023232,2]
[366855091,1750518639799,-500.0,0.00023232,2]
[366855092,1750518639810,-500.0,0.00023232,2]
[366855093,1750518639820,-500.0,0.00023232,2]
[366855094,1750518639831,-500.0,0.0002326,2]
[366855095,1750518639842,-500.0,0.0002326,2]
[366855096,1750518639852,-500.0,0.0002326,2]
[366855097,1750518639862,-500.0,0.0002326,2]
[366855098,1750518639873,-429.0,0.0002326,2]
[366855099,1750518639882,-500.0,0.0002326,2]
[366855100,1750518639893,-500.0,0.0002326,2]
[366855101,1750518639903,-500.0,0.0002326,2]
[366855102,1750518639913,-500.0,0.0002326,2]
[366855103,1750518639923,-500.0,0.0002326,2]
[366855104,1750518639933,-500.0,0.0002326,2]
[366855105,1750518639943,-202.0,0.00023263,3]
[366855106,1750518639953,-500.0,0.00023287,2]
[366855107,1750518639963,-500.0,0.00023287,2]
[366855108,1750518639973,-500.0,0.00023287,2]
[366855109,1750518639983,-500.0,0.00023287,2]
[366855110,1750518639996,-429.0,0.00023287,2]
[366855111,1750518640006,-500.0,0.00023287,2]
[366855112,1750518640017,-500.0,0.00023287,2]
[366855113,1750518640027,-500.0,0.00023287,2]
[366855114,1750518640038,-500.0,0.00023287,2]
[366855115,1750518640048,-500.0,0.00023287,2]
[366855116,1750518640057,-500.0,0.00023287,2]
[366855117,1750518640068,-500.0,0.00023315,2]
[366855118,1750518640078,-500.0,0.00023315,2]
[366855119,1750518640089,-500.0,0.00023315,2]
[366855120,1750518640099,-500.0,0.00023315,2]
[366855121,1750518640109,-429.0,0.00023315,2]
[366855122,1750518640118,-500.0,0.00023315,2]
[366855123,1750518640128,-500.0,0.00023315,2]
[366855124,1750518640137,-500.0,0.00023315,2]
[366855125,1750518640148,-500.0,0.00023315,2]
[366855126,1750518640158,-500.0,0.00023315,2]
[366855127,1750518640168,-500.0,0.00023315,2]
[366855128,1750518640177,-2470.32,0.00023332,2]
[366855129,1750518640187,-500.0,0.00023342,2]
[366855130,1750518640197,-500.0,0.00023342,2]
[366855131,1750518640206,-500.0,0.00023342,2]
[366855132,1750518640216,-500.0,0.00023342,2]
[366855133,1750518640226,-429.0,0.00023342,2]
[366855134,1750518640236,-500.0,0.00023342,2]
[366855135,1750518640245,-500.0,0.00023342,2]
[366855136,1750518640256,-500.0,0.00023342,2]
[366855137,1750518640266,-500.0,0.00023342,2]
[366855138,1750518640276,-500.0,0.00023342,2]
[366855139,1750518640286,-500.0,0.00023342,2]
[366855140,1750518640296,-500.0,0.00023369,2]
[366855141,1750518640306,-500.0,0.00023369,2]
[366855142,1750518640316,-304.44958386,0.00023369,2]
[366855143,1750518640326,-500.0,0.00023369,2]
[366855144,1750518640336,-429.0,0.00023369,2]
[366855145,1750518640346,-500.0,0.00023369,2]
[366855146,1750518640355,-222.70707834,0.00023369,2]
[366855147,1750518640366,-500.0,0.00023369,2]
[366855148,1750518640375,-603.81100611,0.00023369,2]
[366855149,1750518640385,-186.05510742,0.00023369,2]
[366855150,1750518640395,-500.0,0.00023369,2]
[366855151,1750518640405,-180.78,0.00023392,2]
[366855152,1750518640415,-500.0,0.00023397,2]
[366855153,1750518640647,-500.0,0.00023397,2]
[366855156,1750518640689,-500.0,0.00023397,2]
[366855157,1750518640700,-429.0,0.00023397,2]
[366855158,1750518640710,-155.48780062,0.00023397,2]
[366855159,1750518640721,-500.0,0.00023397,2]
[366855160,1750518640731,-500.0,0.00023397,2]
[366855161,1750518640741,-834.26476573,0.00023406,2]
[366855162,1750518640752,-500.0,0.00023424,2]
[366855163,1750518640763,-500.0,0.00023424,2]
[366855164,1750518640773,-500.0,0.00023424,2]
[366855165,1750518640783,-429.0,0.00023424,2]
[366855166,1750518640792,-500.0,0.00023424,2]
[366855167,1750518640802,-500.0,0.00023424,2]
[366855168,1750518640812,-641.00078552,0.00023425,2]
[366855169,1750518640823,-500.0,0.00023452,2]
[366855170,1750518640833,-500.0,0.00023452,2]
[366855171,1750518640844,-500.0,0.00023452,2]
[366855172,1750518640855,-429.0,0.00023452,2]
[366855173,1750518640865,-500.0,0.00023452,2]
[366855174,1750518640875,-500.0,0.00023452,2]
[366855175,1750518640885,-424.99837877,0.00023479,2]
[366855176,1750518640896,-150.39587086,0.00023479,2]
[366855177,1750518640905,-500.0,0.00023479,2]
[366855178,1750518640916,-429.0,0.00023479,2]
[366855179,1750518640926,-500.0,0.00023479,2]
[366855180,1750518640935,-500.0,0.00023479,2]
[366855181,1750518640945,-500.0,0.00023506,2]
[366855182,1750518640955,-429.0,0.00023506,2]
[366855183,1750518640965,-500.0,0.00023506,2]
[366855184,1750518640975,-314.16607858,0.00023506,2]
[366855185,1750518640985,-500.0,0.00023534,2]
[366855186,1750518640997,-429.0,0.00023534,2]
[366855187,1750518641008,-225.03574709,0.00023534,2]
[366855188,1750518641019,-674.51880831,0.00023555,9]
[366855189,1750518641029,-500.0,0.00023561,2]
[366855190,1750518641039,-429.0,0.00023561,2]
[366855191,1750518641048,-1500.0,0.00023568,2]
[366855192,1750518641058,-500.0,0.00023589,2]
[366855193,1750518641068,-429.0,0.00023589,2]
[366855194,1750518641078,-512.55715163,0.00023616,2]
[366855195,1750518641087,-429.0,0.00023616,2]
[366855196,1750518641097,-429.0,0.00023643,2]
[366855197,1750518641107,-429.0,0.00023671,2]
[366855198,1750518641117,-429.0,0.00023698,2]
[366855199,1750518641127,-166.84,0.00023711,2]
[366855200,1750518641137,-7135.0,0.0002372,2]
[366855201,1750518641147,-156.0,0.0002372,2]
[366855202,1750518641157,-4095.0,0.0002372,2]
[366855203,1750518641167,-890.482,0.0002372,2]
[366855204,1750518641177,-429.0,0.00023726,2]
[366855205,1750518641187,-429.0,0.00023753,2]
[366855206,1750518641197,-641.00078552,0.00023767,2]
[366855207,1750518641207,-429.0,0.0002378,2]
[366855208,1750518641218,-429.0,0.00023808,2]
[366855209,1750518641228,-433.0,0.00023835,2]
[366855210,1750518641238,-243.0,0.00023836,2]
[366855211,1750518641248,-196.47,0.00023869,2]
[366855212,1750518641258,-300.0,0.00023899,2]
[366855213,1750518641271,-300.0,0.00023899,2]
[366855214,1750518641280,-1000.0,0.000239,8]
[366855215,1750518641290,-207.4,0.00023974,2]
[366855216,1750518641300,-1957.856,0.00023974,2]
[366855217,1750518641309,-151.0,0.00023974,2]
[366855218,1750518641318,-151.0,0.00023974,2]
[366855219,1750518641328,-188.0,0.00023974,2]
[366855220,1750518641337,-151.0,0.00023974,2]
[366855221,1750518641345,-1000.0,0.00024,10]
[366855222,1750518641354,-8974.03621499,0.00024022,2]
[366855223,1750518641364,-3553.0579065,0.00024022,2]
[366855224,1750518641374,-648.88,0.00024027,2]
[366855225,1750518641384,-2030.296672,0.00024029,2]
[366855226,1750518641395,-2105.41764886,0.00024084,2]
[366855227,1750518641405,-674.51880831,0.00024107,10]
[366855228,1750518641415,-641.00078552,0.00024108,2]
[366855229,1750518641425,-250.0,0.0002411,2]
[366855230,1750518641435,-250.0,0.0002411,2]
[366855231,1750518641445,-250.0,0.0002411,2]
[366855232,1750518641455,-2000.0,0.00024116,2]
[366855233,1750518641465,-1000.0,0.00024127,4]
[366855234,1750518641475,-1000.0,0.00024127,4]
[366855235,1750518641484,-1000.0,0.00024127,4]
[366855236,1750518641493,-1000.0,0.00024127,4]
[366855237,1750518641503,-1000.0,0.00024127,4]
[366855238,1750518641513,-1000.0,0.00024127,4]
[366855239,1750518641523,-1000.0,0.00024127,4]
[366855240,1750518641533,-1000.0,0.00024127,4]
[366855241,1750518641543,-1000.0,0.00024127,4]
[366855242,1750518641553,-1000.0,0.00024127,4]
[366855243,1750518641562,-1000.0,0.00024127,4]
[366855244,1750518641572,-1000.0,0.00024127,4]
[366855245,1750518641582,-1000.0,0.00024127,4]
[366855246,1750518641592,-1000.0,0.00024127,4]
[366855247,1750518641601,-1000.0,0.00024127,4]
[366855248,1750518641611,-1000.0,0.00024127,4]
[366855249,1750518641621,-1000.0,0.00024127,4]
[366855250,1750518641630,-1000.0,0.00024127,4]
[366855251,1750518641640,-1000.0,0.00024127,4]
[366855252,1750518641663,-1000.0,0.00024127,4]
[366855253,1750518641674,-1000.0,0.00024127,4]
[366855254,1750518641684,-1000.0,0.00024127,4]
[366855255,1750518641694,-1000.0,0.00024127,4]
[366855256,1750518641704,-1000.0,0.00024127,4]
[366855257,1750518641714,-1000.0,0.00024127,4]
[366855258,1750518641724,-1000.0,0.00024127,4]
[366855259,1750518641735,-1000.0,0.00024127,4]
[366855260,1750518641745,-1000.0,0.00024127,4]
[366855261,1750518641755,-1000.0,0.00024127,4]
[366855262,1750518641767,-1000.0,0.00024127,4]
[366855263,1750518641777,-1000.0,0.00024127,4]
[366855264,1750518641790,-1000.0,0.00024127,4]
[366855265,1750518641800,-1000.0,0.00024127,4]
[366855266,1750518641810,-876.0,0.00024127,4]
[366855267,1750518641820,-2183.31810187,0.00024139,2]
[366855268,1750518641831,-1147.48410575,0.00024165,2]
[366855269,1750518641841,-1034.64421267,0.00024165,2]
[366855270,1750518641851,-2264.10087164,0.00024194,2]
[366855271,1750518641862,-2347.87260389,0.00024249,2]
[366855272,1750518641872,-15759.71359119,0.00024273,2]
[366855273,1750518641882,-168.05619628,0.000243,2]
[366855274,1750518641891,-2434.74389024,0.00024304,2]
[366855275,1750518641901,-1000.0,0.00024311,4]
[366855276,1750518641911,-1000.0,0.00024311,4]
[366855277,1750518641921,-1000.0,0.00024311,4]
[366855278,1750518641933,-1000.0,0.00024311,4]
[366855279,1750518641943,-1000.0,0.00024311,4]
[366855280,1750518641953,-1000.0,0.00024311,4]
[366855281,1750518641961,-1000.0,0.00024311,4]
[366855282,1750518641971,-1000.0,0.00024311,4]
[366855283,1750518641982,-1000.0,0.00024311,4]
[366855284,1750518641992,-1000.0,0.00024311,4]
[366855285,1750518642007,-1000.0,0.00024311,4]
[366855286,1750518642018,-1000.0,0.00024311,4]
[366855287,1750518642031,-1000.0,0.00024311,4]
[366855288,1750518642042,-1000.0,0.00024311,4]
[366855289,1750518642053,-1000.0,0.00024311,4]
[366855290,1750518642062,-1000.0,0.00024311,4]
[366855291,1750518642072,-1000.0,0.00024311,4]
[366855292,1750518642083,-1000.0,0.00024311,4]
[366855293,1750518642093,-1000.0,0.00024311,4]
[366855294,1750518642103,-481.0,0.00024335,2]
[366855295,1750518642113,-1023.13084586,0.00024359,2]
[366855296,1750518642123,-35576.9251083,0.000244,2]
[366855297,1750518642133,-641.00078552,0.0002445,2]
[366855298,1750518642142,-489.0,0.00024484,2]
[366855299,1750518642153,-202.0,0.00024488,5]
[366855300,1750518642163,-481.0,0.00024627,2]
[366855301,1750518642174,-150.0,0.0002463,2]
[366855302,1750518642184,-2000.0,0.00024658,15]
[366855303,1750518642194,-6015.0,0.00024658,4]
[366855304,1750518642204,-200.0,0.00024658,2]
[366855305,1750518642214,-150.0,0.00024658,2]
[366855306,1750518642224,-300.0,0.00024658,2]
[366855307,1750518642234,-674.51880831,0.00024659,11]
[366855308,1750518642244,-2500.0,0.00024664,2]
[366855309,1750518642255,-500.0,0.0002467,2]
[366855310,1750518642265,-500.0,0.0002467,2]
[366855311,1750518642275,-600.91536243,0.0002467,2]
[366855312,1750518642285,-1000.0,0.0002467,2]
[366855313,1750518642295,-1000.0,0.0002467,2]
[366855314,1750518642305,-1900.971377,0.0002467,2]
[366855315,1750518642315,-150.0,0.00024685,2]
[366855316,1750518642325,-203.59867748,0.00024713,2]
[366855317,1750518642336,-373.22618803,0.0002472,2]
[366855318,1750518642345,-150.0,0.00024767,10]
[366855319,1750518642355,-181.79436086,0.00024773,2]
[366855320,1750518642365,-500.0,0.00024773,2]
[366855321,1750518642375,-500.0,0.00024773,2]
[366855322,1750518642385,-500.0,0.00024773,2]
[366855323,1750518642395,-500.0,0.00024773,2]
[366855324,1750518642405,-159.99635359,0.00024773,2]
[366855325,1750518642415,-500.0,0.00024773,2]
[366855326,1750518642424,-500.0,0.00024773,2]
[366855327,1750518642434,-500.0,0.00024773,2]
[366855328,1750518642444,-500.0,0.00024773,2]
[366855329,1750518642454,-500.0,0.00024773,2]
[366855330,1750518642464,-559.12118164,0.00024773,2]
[366855331,1750518642474,-500.0,0.00024773,2]
[366855332,1750518642484,-500.0,0.00024773,2]
[366855333,1750518642493,-641.00078552,0.00024791,2]
[366855334,1750518642503,-300.0,0.00024799,10]
[366855335,1750518642514,-300.0,0.00024799,10]
[366855336,1750518642523,-300.0,0.00024799,10]
[366855337,1750518642533,-300.0,0.00024799,10]
[366855338,1750518642543,-2000.0,0.000248,9]
[366855339,1750518642554,-263060.878111,0.000248,3]
[366855340,1750518642563,-12297.29,0.000248,2]
[366855341,1750518642573,-481.0,0.00024804,2]
[366855342,1750518642583,-18790.0627222,0.0002481,3]
[366855343,1750518642593,-150.0,0.0002482,2]
[366855344,1750518642603,-150.0,0.0002482,2]
[366855345,1750518642614,-150.0,0.0002482,2]
[366855346,1750518642623,-150.0,0.0002482,2]
[366855347,1750518642633,-150.0,0.0002482,2]
[366855348,1750518642643,-946.0,0.0002482,2]
[366855349,1750518642653,-3335.0,0.0002482,2]
[366855350,1750518642664,-638.0,0.0002482,2]
[366855351,1750518642674,-803.0,0.0002482,2]
[366855352,1750518642684,-591.0,0.0002482,2]
[366855353,1750518642695,-928.0,0.0002482,2]
[366855354,1750518642705,-559.0,0.0002482,2]
[366855355,1750518642715,-2005.0,0.0002482,2]
[366855356,1750518642724,-1278.0,0.0002482,2]
[366855357,1750518642734,-1676.0,0.0002482,2]
[366855358,1750518642744,-1171.578,0.0002482,2]
[366855359,1750518642755,-8974.03621499,0.00024833,2]
[366855360,1750518642765,-3553.0579065,0.00024833,2]
[366855362,1750518642776,-131530.439056,0.0002489,3]
[366855364,1750518642786,-300.0,0.00024899,10]
[366855366,1750518642796,-382.63220106,0.00024899,10]
[366855369,1750518642805,-300.0,0.00024899,10]
[366855372,1750518642815,-151.0,0.000249,7]
[366855374,1750518642826,-151.0,0.000249,7]
[366855376,1750518642836,-151.0,0.000249,7]
[366855378,1750518642846,-151.0,0.000249,7]
[366855380,1750518642856,-151.0,0.000249,7]
[366855382,1750518642866,-151.0,0.000249,7]
[366855384,1750518642876,-151.0,0.000249,7]
[366855385,1750518642886,-151.0,0.000249,7]
[366855387,1750518642896,-225.804174,0.000249,7]
[366855389,1750518642906,-151.0,0.000249,7]
[366855391,1750518642916,-151.0,0.000249,7]
[366855393,1750518642926,-328.122819,0.000249,7]
[366855394,1750518642936,-328.122819,0.000249,7]
[366855395,1750518642947,-3000.0,0.000249,9]
[366855396,1750518642957,-151.0,0.000249,7]
[366855397,1750518642967,-150.0,0.000249,2]
[366855398,1750518642977,-192.40500256,0.00024904,10]
[366855399,1750518642988,-200.0,0.00024905,2]
[366855400,1750518642999,-315.31090303,0.00024931,120]
[366855401,1750518643009,-500.0,0.0002497,2]
[366855402,1750518643020,-1000.0,0.0002497,2]
[366855403,1750518643029,-168.0,0.00024975,2]
[366855404,1750518643039,-238.22788,0.00024997,2]
[366855405,1750518643050,-500.0,0.00025,30]
[366855406,1750518643059,-600.0,0.00025,30]
[366855407,1750518643069,-600.0,0.00025,30]
[366855408,1750518643082,-600.0,0.00025,30]
[366855409,1750518643096,-600.0,0.00025,30]
[366855410,1750518643105,-600.0,0.00025,30]
[366855411,1750518643115,-600.0,0.00025,30]
[366855412,1750518643125,-600.0,0.00025,30]
[366855413,1750518643134,-600.0,0.00025,30]
[366855414,1750518643144,-600.0,0.00025,30]
[366855415,1750518643154,-600.0,0.00025,30]
[366855416,1750518643164,-600.0,0.00025,30]
[366855417,1750518643181,-600.0,0.00025,30]
[366855418,1750518643193,-948.93998968,0.00025,30]
[366855419,1750518643203,-168.0,0.00025028,2]
[366855420,1750518643213,-641.00078552,0.00025133,2]
[366855421,1750518643223,-168.0,0.00025146,2]
[366855422,1750518643233,-200.0,0.00025154,2]
[366855423,1750518643243,-168.0,0.00025154,2]
[366855424,1750518643253,-540.30081214,0.00025173,2]
[366855425,1750518643263,-378.45726116,0.00025173,2]
[366855426,1750518643274,-500.0,0.00025173,2]
[366855427,1750518643285,-300.0,0.00025189,2]
[366855428,1750518643295,-300.0,0.0002519,2]
[366855429,1750518643304,-2500.0,0.0002519,2]
[366855430,1750518643316,-300.0,0.00025206,2]
[366855431,1750518643326,-674.51880831,0.0002521,12]
[366855432,1750518643336,-1006.16612482,0.00025212,2]
[366855433,1750518643346,-196.47,0.00025238,2]
[366855434,1750518643356,-1000.0,0.00025321,2]
[366855435,1750518643366,-1000.0,0.00025321,2]
[366855436,1750518643376,-1000.0,0.00025321,2]
[366855437,1750518643386,-1000.0,0.00025321,2]
[366855438,1750518643397,-502.33983832,0.00025321,2]
[366855439,1750518643406,-1000.0,0.00025321,2]
[366855440,1750518643416,-500.49750435,0.00025321,2]
[366855441,1750518643426,-215.0738,0.00025343,2]
[366855442,1750518643437,-156.587,0.00025343,2]
[366855443,1750518643447,-1462.0,0.00025415,2]
[366855444,1750518643458,-168.0,0.00025433,2]
[366855445,1750518643467,-641.00078552,0.00025475,2]
[366855446,1750518643478,-1000.0,0.00025479,2]
[366855447,1750518643488,-200.0,0.000255,2]
[366855448,1750518643498,-166.84,0.00025519,2]
[366855449,1750518643509,-151.0,0.00025555,7]
[366855450,1750518643519,-151.0,0.00025555,7]
[366855451,1750518643530,-150.0,0.00025555,2]
[366855452,1750518643539,-10086.99364628,0.00025555,2]
[366855453,1750518643549,-150.0,0.00025555,2]
[366855454,1750518643559,-574.97324264,0.00025555,2]
[366855455,1750518643568,-150.0,0.00025555,2]
[366855456,1750518643578,-3899.2712366,0.00025555,2]
[366855457,1750518643588,-150.0,0.00025555,2]
[366855459,1750518643597,-72204.28255776,0.00025555,2]
[366855461,1750518643607,-150.0,0.00025555,2]
[366855463,1750518643617,-5730.30486352,0.00025555,2]
[366855465,1750518643627,-151.0,0.00025555,7]
[366855467,1750518643637,-151.0,0.00025555,7]
[366855468,1750518643647,-151.0,0.00025555,7]
[366855469,1750518643657,-151.0,0.00025555,7]
[366855470,1750518643667,-151.0,0.00025555,7]
[366855471,1750518643677,-151.0,0.00025555,7]
[366855472,1750518643688,-232.165969,0.00025555,7]
[366855473,1750518643698,-232.165969,0.00025555,7]
[366855474,1750518643708,-151.0,0.00025555,7]
[366855475,1750518643718,-151.0,0.00025555,7]
[366855476,1750518643729,-151.0,0.00025555,7]
[366855477,1750518643739,-151.0,0.00025555,7]
[366855478,1750518643748,-151.0,0.00025555,7]
[366855479,1750518643759,-500.0,0.0002557,2]
[366855480,1750518643769,-1000.0,0.0002557,2]
[366855481,1750518643779,-481.0,0.00025602,2]
[366855482,1750518643789,-481.0,0.00025609,2]
[366855483,1750518643799,-8974.03621499,0.00025644,2]
[366855484,1750518643809,-3553.0579065,0.00025644,2]
[366855485,1750518643819,-481.0,0.00025678,2]
[366855486,1750518643829,-1000.0,0.00025703,2]
[366855487,1750518643840,-202.0,0.00025713,7]
[366855488,1750518643849,-300.0,0.00025754,2]
[366855489,1750518643858,-324.3,0.00025759,120]
[366855490,1750518643867,-674.51880831,0.00025762,13]
[366855491,1750518643877,-12297.29,0.000258,2]
[366855492,1750518643886,-641.00078552,0.00025816,2]
[366855493,1750518643896,-594.3668883,0.00025868,2]
[366855494,1750518643907,-1421.94343174,0.00025868,2]
[366855495,1750518643917,-1500.0,0.00025868,2]
[366855496,1750518643927,-1500.0,0.00025868,2]
[366855497,1750518644200,-151.0,0.00025969,2]
[366855498,1750518644211,-2000.0,0.00025984,60]
[366855499,1750518644221,-500.0,0.00025984,120]
[366855500,1750518644231,-2000.0,0.00026,2]
[366855501,1750518644241,-2000.0,0.00026,2]
[366855502,1750518644251,-2000.0,0.00026,2]
[366855503,1750518644261,-2000.0,0.00026,2]
[366855504,1750518644272,-2000.0,0.00026,2]
[366855505,1750518644282,-2000.0,0.00026,2]
[366855506,1750518644292,-2000.0,0.00026,2]
[366855507,1750518644302,-2000.0,0.00026,2]
[366855508,1750518644312,-611.964,0.00026,12]
[366855509,1750518644321,-168.05619628,0.0002602,2]
[366855510,1750518644331,-1985.94,0.000261,2]
[366855511,1750518644341,-1000.0,0.00026119,2]
[366855512,1750518644350,-641.00078552,0.00026158,2]
[366855513,1750518644361,-1500.0,0.00026301,120]
[366855514,1750518644371,-300.0,0.00026302,2]
[366855515,1750518644381,-674.51880831,0.00026314,14]
[366855516,1750518644392,-2003.82223466,0.00026416,2]
[366855517,1750518644402,-1194.39014784,0.00026416,2]
[366855518,1750518644412,-8974.03621499,0.00026456,2]
[366855519,1750518644422,-3553.0579065,0.00026456,2]
[366855520,1750518644432,-641.00078552,0.000265,2]
[366855521,1750518644442,-376.0,0.000265,2]
[366855522,1750518644452,-769.0,0.000265,2]
[366855523,1750518644462,-238.0,0.000265,2]
[366855524,1750518644472,-1000.0,0.0002653,2]
[366855525,1750518644482,-233.94,0.0002657,120]
[366855526,1750518644493,-331.02775709,0.00026575,2]
[366855527,1750518644503,-150.5,0.0002658,120]
[366855528,1750518644513,-150.5,0.0002659,120]
[366855529,1750518644523,-1825.38,0.00026591,2]
[366855530,1750518644532,-499.99,0.00026591,2]
[366855531,1750518644542,-150.99,0.00026591,2]
[366855532,1750518644552,-512.0,0.00026591,20]
[366855533,1750518644563,-150.99,0.00026591,2]
[366855534,1750518644572,-3069.49,0.00026591,2]
[366855535,1750518644582,-1484.63,0.00026591,2]
[366855536,1750518644592,-336.32,0.00026591,2]
[366855537,1750518644602,-196.47,0.00026608,2]
[366855538,1750518644611,-168.0,0.00026686,2]
[366855539,1750518644622,-648.88,0.00026696,120]
[366855540,1750518644632,-223.0315306,0.00026712,2]
[366855541,1750518644642,-162.380719,0.00026712,2]
[366855542,1750518644652,-7135.0,0.0002672,2]
[366855543,1750518644661,-156.0,0.0002672,2]
[366855544,1750518644671,-4095.0,0.0002672,2]
[366855545,1750518644681,-885.0,0.0002672,2]
[366855546,1750518644691,-168.0,0.00026748,2]
[366855547,1750518644701,-34373.95721264,0.0002676,2]
[366855548,1750518644711,-409.71171567,0.00026764,2]
[366855549,1750518644721,-641.00078552,0.00026841,2]
[366855550,1750518644731,-300.0,0.0002685,2]
[366855551,1750518644741,-674.51880831,0.00026866,16]
[366855552,1750518644751,-151.0,0.0002688,7]
[366855553,1750518644762,-151.0,0.0002688,7]
[366855554,1750518644772,-148189.45784651,0.0002688,2]
[366855555,1750518644782,-246.95121254,0.0002688,7]
[366855556,1750518644793,-150.0,0.0002688,7]
[366855557,1750518644803,-150.0,0.0002688,7]
[366855558,1750518644813,-150.0,0.0002688,7]
[366855559,1750518644822,-150.0,0.0002688,7]
[366855560,1750518644832,-150.0,0.0002688,7]
[366855561,1750518644842,-150.0,0.000269,7]
[366855562,1750518644852,-12297.29,0.000269,2]
[366855563,1750518644862,-202.0,0.00026937,9]
[366855564,1750518644872,-335.63,0.00026986,120]
[366855565,1750518644882,-238.22788,0.00026997,2]
[366855566,1750518644892,-150.0,0.00027,2]
[366855567,1750518644903,-400.0,0.00027,2]
[366855568,1750518644912,-1000.0,0.00027011,2]
[366855569,1750518644922,-1000.0,0.00027067,2]
[366855570,1750518644932,-180.38371135,0.00027093,2]
[366855571,1750518644942,-3575.2,0.00027123,2]
[366855572,1750518644953,-373.22618801,0.00027177,2]
[366855573,1750518644963,-641.00078552,0.00027183,2]
[366855574,1750518644973,-151.0,0.00027218,7]
[366855575,1750518644983,-544.562858,0.00027218,7]
[366855576,1750518644998,-544.562858,0.00027218,7]
[366855577,1750518645007,-151.0,0.00027218,7]
[366855578,1750518645019,-151.0,0.00027218,7]
[366855579,1750518645029,-206.306235,0.00027218,7]
[366855580,1750518645040,-206.306235,0.00027218,7]
[366855581,1750518645050,-8974.03621499,0.00027267,2]
[366855582,1750518645060,-3553.0579065,0.00027267,2]
[366855583,1750518645070,-151.0,0.0002729,2]
[366855584,1750518645082,-1000.0,0.00027303,2]
[366855585,1750518645092,-481.0,0.00027327,2]
[366855586,1750518645102,-500.0,0.00027397,2]
[366855587,1750518645112,-500.0,0.00027397,2]
[366855588,1750518645122,-150.49237548,0.00027397,2]
[366855589,1750518645133,-500.0,0.00027397,2]
[366855590,1750518645143,-150.0,0.00027397,2]
[366855591,1750518645153,-500.0,0.00027397,2]
[366855592,1750518645163,-500.0,0.00027397,2]
[366855593,1750518645172,-203.5949122,0.00027397,2]
[366855594,1750518645182,-150.0,0.00027397,2]
[366855595,1750518645192,-500.0,0.00027397,2]
[366855596,1750518645202,-500.0,0.00027397,2]
[366855597,1750518645212,-150.0,0.00027397,2]
[366855598,1750518645222,-194.9415857,0.00027397,2]
[366855599,1750518645233,-150.0,0.00027397,2]
[366855600,1750518645243,-500.0,0.00027397,2]
[366855601,1750518645253,-500.0,0.00027397,2]
[366855602,1750518645263,-218.59756559,0.00027397,2]
[366855603,1750518645273,-87124.87,0.00027397,2]
[366855604,1750518645283,-150.0,0.00027397,2]
[366855605,1750518645292,-7758.94,0.00027397,2]
[366855606,1750518645302,-300.0,0.00027397,2]
[366855607,1750518645311,-205.93,0.00027397,80]
[366855608,1750518645321,-502.89,0.00027397,2]
[366855609,1750518645331,-300.0,0.00027398,2]
[366855610,1750518645340,-250.0,0.000274,2]
[366855611,1750518645350,-600.0,0.000274,2]